Cogmind - Beta 9.4 @@@ ROGUE MODE // 2020.02.01 @ 15:38:34 Player: mr roboto Result: Destroyed by as-17768 with Assembled Blade Performance ------------- Evolutions (0) 0 Regions Visited (3) 600 Robots Destroyed (8) 40 Value Destroyed (194) 194 Prototype IDs (0) 0 Alien Tech Used (0) 0 Bonus (-395) -395 TOTAL SCORE: 439 Bonus ------- Friendly Fire -395 Cogmind --------- Core Integrity 0/250 Matter 106/300 Energy 81/100 System Corruption 3% Temperature Cool (0) Movement Walking (150) Ox1 Location -10/Exiles Parts ------- > --- POWER (1) -------- (None) > --- PROPULSION (2) --- Aluminum Leg > --- UTILITY (2) ------ Medium Storage Unit Hacking Suite > --- WEAPON (2) ------- EM Pulse Gun Mining Laser > --- INVENTORY (8) ---- Terrain Scanner Targeting Computer Light Armor Plating Light Armor Plating Small Laser Datajack Peak State ------------ > --- POWER ------------ Light Ion Engine > --- PROPULSION ------- Aluminum Leg Aluminum Leg > --- UTILITY ---------- Small Storage Unit Hacking Suite > --- WEAPON ----------- Light Assault Rifle Mining Claw > --- INVENTORY -------- EM Pulse Gun EM Pulse Gun Beam Cannon Grenade Launcher [Rating: 9] Favorites ----------- Power Light Ion Engine Engine Light Ion Engine Propulsion Aluminum Leg Leg Aluminum Leg Utility Hacking Suite Storage Small Storage Unit Hackware Hacking Suite Weapon Light Assault Rifle Energy Gun EM Pulse Gun Ballistic Gun Light Assault Rifle Launcher Grenade Launcher Special Weapon Mining Laser Slashing Weapon Mining Claw Special Melee Weapon Datajack Build | -11 -10 -10 -10 ------- Run | Scr Mat Min Exi Slots Evolved . | . . . . Power . | . . . . Propulsion . | . . . . Utility . | . . . . Weapon . | . . . . Parts Attached 21 | 6 5 7 3 Power 2 | 1 . . 1 Engine 2 | 1 . . 1 Core . | . . . . Reactor . | . . . . Propulsion 2 | 2 . . . Treads . | . . . . Leg 2 | 2 . . . Wheel . | . . . . Hover . | . . . . Flight . | . . . . Utility 3 | 1 1 1 . Device . | . . . . Storage 2 | 1 . 1 . Processor . | . . . . Hackware 1 | . 1 . . Protection . | . . . . Artifact . | . . . . Weapon 14 | 2 4 6 2 Energy Gun 4 | 1 1 1 1 Energy Cannon . | . . . . Ballistic Gun 2 | 1 . 1 . Ballistic Cannon . | . . . . Launcher 4 | . 1 3 . Special Weapon 2 | . . 1 1 Impact Weapon . | . . . . Slashing Weapon 1 | . 1 . . Piercing Weapon . | . . . . Special Melee Weapon 1 | . 1 . . Unidentified Prototypes . | . . . . Parts Lost 5 | . . 2 3 Power 1 | . . . 1 Propulsion 1 | . . 1 . Utility . | . . . . Weapon 3 | . . 1 2 Highest Loss Streak 3 | . . 1 3 Average Slot Usage (%) 93 | . 90 97 81 Engine 13 | . 14 14 12 Leg 25 | . 28 25 14 Storage 14 | . 14 14 14 Hackware 10 | . 5 14 14 Energy Gun 4 | . 4 4 1 Ballistic Gun 9 | . 14 8 . Launcher 7 | . . 10 24 Special Weapon 2 | . . 4 . Slashing Weapon 1 | . 4 . . Special Melee Weapon 1 | . 4 . . Naked Turns . | . . . . Heaviest Build 17 | 10 10 17 17 Greatest Support 20 | 20 20 20 10 Greatest Overweight (x) 1 | . . 1 1 Average Overweight (x) . | . . . 1 Largest Inventory Capacity 8 | 6 6 8 8 Average Capacity 6 | 4 6 7 8 Most Carried 8 | 4 6 8 8 Average Carried 5 | 2 3 6 7 Final Capacity 8 | 6 6 8 8 Final Carried 8 | 1 5 8 6 Class Distribution -------------------- 100% | Mutant Dominant Class ---------------- Mutant | -10/Materials Mutant | -10/Mines Mutant | -10/Exiles Resources | -11 -10 -10 -10 ----------- Run | Scr Mat Min Exi Matter Collected 451 | 204 135 112 . Remotely . | . . . . Salvage Created 158 | . 88 70 . Parts 7 | . 4 3 . Haulers Intercepted . | . . . . Recyclers Shooed . | . . . . Parts Field Recycled . | . . . . Retrieved Matter . | . . . . Parts Self-Destructed . | . . . . Prevented . | . . . . Kills | -11 -10 -10 -10 ------- Run | Scr Mat Min Exi Combat Hostiles Destroyed 4 | . 2 2 . AOE 4 | . 2 2 . Classes Destroyed 4 | . 3 1 . Worker 1 | . 1 . . Builder 1 | . . 1 . Operator 1 | . 1 . . Grunt 4 | . 2 2 . Thug 1 | . . 1 . Best Kill Streak 3 | . 3 2 . Combat Bots Only 2 | . 2 2 . Max Kills in Single Turn 2 | . 2 2 . Gunslinging . | . . . . Exploded 2 | . 1 2 . Melee . | . . . . Uniques/NPCs Destroyed . | . . . . Combat | -11 -10 -10 -10 -------- Run | Scr Mat Min Exi Damage Taken 819 | . 75 488 256 Core 268 | . . 150 118 Absorbed by Shields . | . . . . Core Remaining (%) 100 | 100 . . . Volleys Fired 27 | . 7 18 2 Largest 2 | . 2 2 2 Hottest 100 | . 50 100 60 Shots Fired 41 | . 10 28 3 Gun 12 | . 7 5 . Cannon . | . . . . Launcher 23 | . 3 17 3 Special 6 | . . 6 . Kinetic 11 | . 7 4 . Thermal 6 | . . 6 . Explosive 23 | . 3 17 3 Electromagnetic 1 | . . 1 . Robot Hit Streak 5 | . 5 4 . Robot Miss Streak 3 | . 1 3 1 Penetration Max . | . . . . Secondary Targets . | . . . . Shots Hit Robots 14 | . 10 4 . Core Hits 22 | . 9 13 . Critical Hits . | . . . . Critical Kills . | . . . . Critical Parts Destroyed . | . . . . Melee Attacks 10 | . 10 . . Impact . | . . . . Slashing 7 | . 7 . . Piercing . | . . . . Sneak Attacks 2 | . 2 . . Combat Hostiles . | . . . . Follow-up Attacks . | . . . . Damage Inflicted 531 | . 183 340 8 Guns 61 | . 38 23 . Cannons . | . . . . Explosions 470 | . 145 317 8 Melee . | . . . . Ramming . | . . . . Kinetic 46 | . 38 8 . Thermal . | . . . . Explosive 470 | . 145 317 8 Electromagnetic 15 | . . 15 . Impact . | . . . . Slashing . | . . . . Piercing . | . . . . Highest Corruption 3 | . . 3 3 Average Corruption 3 | . . 3 3 Corruption Purged . | . . . . Effects 6 | . . 3 3 Matter Fused 2 | . . 1 1 Heat Flow Errors 1 | . . 1 . Energy Discharges 1 | . . . 1 Data Loss (minor) 2 | . . 1 1 Overload Shots . | . . . . Overflow Damage 9 | . . 9 . Projectiles . | . . . . Explosions 9 | . . 9 . Melee . | . . . . Knockbacks . | . . . . Impact . | . . . . Kinetic . | . . . . Secondary . | . . . . Self-Inflicted Damage 184 | . . 141 43 Shots 9 | . . 7 2 Rammed . | . . . . Targets Rammed . | . . . . Kicked . | . . . . Crushed . | . . . . Highest Temperature 223 | . 38 223 . Average Temperature 35 | . 19 37 . Received Heat Transfer 72 | . 42 30 . Siege Activations . | . . . . Robots Corrupted . | . . . . Combat Hostiles . | . . . . Parts Fried . | . . . . Impact Corruptions . | . . . . Robots Melted . | . . . . Combat Hostiles . | . . . . Parts Melted . | . . . . Heat Transferred . | . . . . Parts Sabotaged . | . . . . Parts Stolen . | . . . . Parts Stripped . | . . . . Power Chain Reactions . | . . . . Missiles Intercepted . | . . . . Alert | -11 -10 -10 -10 ------- Run | Scr Mat Min Exi Peak Influence 100 | . 93 100 . Average Influence 43 | . 39 49 . Maximum Alert Level . | . . . . Low Security (%) 100 | 100 100 100 . Level 1 . | . . . . Level 2 . | . . . . Level 3 . | . . . . Level 4 . | . . . . Level 5 . | . . . . High Security . | . . . . Max Security . | . . . . Squads Dispatched . | . . . . Investigation . | . . . . Extermination . | . . . . Reinforcement . | . . . . Assault . | . . . . Garrison . | . . . . Intercept . | . . . . Construction Impeded . | . . . . Haulers Reinforced . | . . . . Stealth | -11 -10 -10 -10 --------- Run | Scr Mat Min Exi Distress Signals 1 | . 1 . . Communications Jammed . | . . . . Distress Signals . | . . . . Times Spotted 17 | . 7 3 7 Peak Tracking Total 9 | . 5 2 9 Tactical Retreats . | . . . . Traps | -11 -10 -10 -10 ------- Run | Scr Mat Min Exi Traps Triggered . | . . . . Indirectly . | . . . . Trap Hack Attempts 23 | . 23 . . Triggered . | . . . . Disarmed . | . . . . Reprogrammed 2 | . 2 . . Reused . | . . . . Traps Extracted . | . . . . Installed . | . . . . Triggered . | . . . . Machines | -11 -10 -10 -10 ---------- Run | Scr Mat Min Exi Machines Disabled 2 | . . 1 1 Max in Single Turn 1 | . . 1 1 Machines Sabotaged . | . . . . Garrisons Compromised . | . . . . Overloaded Fab Kills . | . . . . Fab Network Shutdowns . | . . . . Hacking | -11 -10 -10 -10 --------- Run | Scr Mat Min Exi Machines Accessed 2 | . 2 . . Terminals 2 | . 2 . . Fabricators . | . . . . Repair Stations . | . . . . Recycling Units . | . . . . Scanalyzers . | . . . . Garrison Access . | . . . . Total Hacks 2 | . 2 . . Successful 2 | . 2 . . Failed . | . . . . Catastrophic . | . . . . Database Lockouts . | . . . . Manual . | . . . . Terminals 2 | . 2 . . Fabricators . | . . . . Repair Stations . | . . . . Recycling Units . | . . . . Scanalyzers . | . . . . Garrison Access . | . . . . Terminal Hacks 2 | . 2 . . Record 1 | . 1 . . Locate Traps 1 | . 1 . . Fabricator Hacks . | . . . . Repair Station Hacks . | . . . . Recycling Unit Hacks . | . . . . Scanalyzer . | . . . . Garrison Access Hacks . | . . . . Unauthorized Hacks . | . . . . Terminals . | . . . . Fabricators . | . . . . Repair Stations . | . . . . Recycling Units . | . . . . Scanalyzers . | . . . . Garrison Access . | . . . . Data Cores Recovered 1 | . 1 . . Used . | . . . . Hacking Detections . | . . . . Full Trace Events . | . . . . Feedback Events . | . . . . Feedback Blocked . | . . . . Robot Schematics Acquired . | . . . . Robots Built . | . . . . Matter . | . . . . Time . | . . . . Total Robot Build Rating . | . . . . Part Schematics Acquired . | . . . . Parts Built . | . . . . Matter . | . . . . Time . | . . . . Total Part Build Rating . | . . . . Parts Repaired . | . . . . Time . | . . . . Parts Recycled . | . . . . Recycled Matter . | . . . . Retrieved Matter . | . . . . Retrieved Components . | . . . . Parts Scanalyzed . | . . . . Part Schematics Acquired . | . . . . Parts Damaged . | . . . . Bothacking | -11 -10 -10 -10 ------------ Run | Scr Mat Min Exi Used RIF Installer . | . . . . Robots Hacked 2 | . 2 . . Non-combat 2 | . 2 . . Combat . | . . . . Robot Hacks Applied 2 | . 2 . . parse_system 1 | . 1 . . no_distress 1 | . 1 . . Relay Couplers Released . | . . . . Robots Rewired . | . . . . Allies Hacked . | . . . . Hacks Repelled . | . . . . Allies | -11 -10 -10 -10 -------- Run | Scr Mat Min Exi Total Allies 1 | . . 1 . Largest Group 1 | . . 1 . Highest-Rated Group 31 | . . 31 . Highest-Rated Ally 31 | . . 31 . Total Orders . | . . . . Ally Attacks . | . . . . Total Damage . | . . . . Kills . | . . . . Allies Corrupted . | . . . . Allies Melted . | . . . . Intel | -11 -10 -10 -10 ------- Run | Scr Mat Min Exi Robot Analysis Total . | . . . . Derelict Logs Recovered 2 | . . 2 . Drone Launches . | . . . . Drone Recoveries . | . . . . Exploration | -11 -10 -10 -10 ------------- Run | Scr Mat Min Exi Turns Passed 1363 | 61 470 742 90 Spaces Moved 965 | 51 326 534 54 Core 16 | 16 . . . Treads . | . . . . Legs 949 | 35 326 534 54 Wheels . | . . . . Hover . | . . . . Flight . | . . . . Fastest Speed 50 | 50 120 120 150 Average Speed 123 | 98 120 124 150 Slowest Speed 150 | 120 120 150 150 Overloaded Moves . | . . . . Propulsion Burnouts . | . . . . Robots Hopped . | . . . . Cave-ins Triggered 1 | . . 1 . Exploration Rate (%) 34 | 3 43 79 11 Regions Visited 3 Branch Regions 2 Pre-discovered Areas 1 | . . 1 . Known Exits Taken . | . . . . Unknown Exits Taken 3 | 1 1 1 . Scrap Searched 3 | . . 3 . Spaces Dug 101 | . 6 81 14 Terrain Destroyed 149 | . 22 105 22 Melee 6 | . 6 . . Projectile 6 | . . 6 . AOE 137 | . 16 99 22 Actions | -11 -10 -10 -10 --------- Run | Scr Mat Min Exi Total 1069 | 60 377 572 60 Wait . | . . . . Move 961 | 50 325 532 54 Hop . | . . . . Pick Up 19 | 4 6 9 . Fast Attach 5 | 3 . 1 1 Attach 7 | 3 1 1 2 Detach . | . . . . Swap 9 | . 4 5 . Drop 7 | . 1 5 1 Fire 27 | . 7 18 2 Melee 10 | . 10 . . Ram . | . . . . Kick . | . . . . Crush . | . . . . Escape Stasis 1 | . . 1 . Rewire . | . . . . Trap 23 | . 23 . . Miscellaneous . | . . . . Route ------- -11/Scrapyard -10/Materials -10/Mines -10/Exiles History --------- Turn | Location | Event 24 | -11/Scrapyard | Discovered new exit (range 15) 62 | -11/Scrapyard | Entered Materials 304 | -10/Materials | Build established: Mutant 438 | -10/Materials | Discovered new exit (range 8) 532 | -10/Materials | Entered Mines 637 | -10/Mines | Learned Materials stockpile data 718 | -10/Mines | Joined a pair of Derelicts in attacking an 0b10 outpost 798 | -10/Mines | Received a Mining Laser from a helpful Derelict 978 | -10/Mines | Crushed by falling debris 1028 | -10/Mines | Assisted by bots powering up and referring to "LRC-V3" 1153 | -10/Mines | Core integrity fell below 50% 1263 | -10/Mines | Deemed a non-threat by the Exiles lab entrance 1265 | -10/Mines | Discovered new exit (range 5) 1274 | -10/Mines | Entered Exiles 1329 | -10/Exiles | Met 8R-AWN 1355 | -10/Exiles | Attacked by the Exiles 1363 | -10/Exiles | Core integrity fell below 20% 1364 | -10/Exiles | Destroyed by as-17768 with Assembled Blade Last Messages --------------- 01357_ Grenade Launcher destroyed. 01357_ HV Slug penetrates Wall. 01357_ Machine disabled. 01357_ HV Slug penetrates Wall. 01358_ Grenade Launcher destroyed. 01359_ Penetrated by HV Slug. 01359_ Lgt. Ion Engine destroyed. 01359_ HV Slug penetrates Wall. 01359_ Penetrated by HV Slug. 01359_ HV Slug penetrates Wall. 01362_ Penetrated by HV Slug. 01362_ HV Slug penetrates Machine. 01362_ Penetrated by HV Slug. 01362_ HV Slug penetrates Machine. 01363_ Machine disabled. 01364_ Penetrated by HV Slug. 01364_ HV Slug penetrates as-46611. 01364_ as-46611 suffers critical hit. 01364_ as-46611 destroyed. 01364_ Penetrated by HV Slug. Map ----- +----------------------------------------------------+ | ?????????????????????????????????????????????????? | | ?????????????????????????????????????????????????? | | ?????????????????????????????????????????????????? | | ?????????????????????????????????????????????????? | | ?????????????????????????????????????????????????? | | ?????????????????????????????????????????????????? | | ?????????????????????????????????????????????????? | | ?????????????????????????????????????????????????? | | ?????????????????????????????????????????????????? | | ?????????????????????????????????????????????????? | | ?????????????????????????????????????????????????? | | ?????????????????????????????????????????????????? | | ?????????????????????????????????????????????????? | | ?????????????????????????????????????????????????? | | ?????????????????????????????????????????????????? | | ?????????????????????????????????????????????????? | | ?????????????????????????????????????????????????? | | ??????????????????????????????????????????????? ?? | | ??????????????????????????????????????????????? | | ??????????????????????????????????????????????# | | ??????????????????????????######????????????## | | ???????????????????????### # #????????????# | | ???????????????????????# #????????????# | | ???????????????????????# #???????????## | | ???????????????????????#" g #??????????## # | | ??????????????????????## @ #??????????# # | | ????????????????????### a ##????????### #? | | ????????????????????# ########## #? | | ????????????????????# a #""""## #?? | | ???????????????????# a * ##? | | ????????????? ## * #? | | ????????????? #?## ## | | ????????????? a ??#"""""#### # | | ???????????? #" #??#######??#### * | | ???????????? a% ###;#???????????????##### | | ????????????? #??##????????????????????### | | ????????????? #???????????????????????????### | | ??????????????"???????????????????????????????### | | ???????????????????????????????????????????????#" | | ???????????????????????????????????????????????### | | ?????????????????????????????????????????????????? | | ?????????????????????????????????????????????????? | | ?????????????????????????????????????????????????? | | ?????????????????????????????????????????????????? | | ?????????????????????????????????????????????????? | | ?????????????????????????????????????????????????? | | ?????????????????????????????????????????????????? | | ?????????????????????????????????????????????????? | | ?????????????????????????????????????????????????? | | ?????????????????????????????????????????????????? | +----------------------------------------------------+ Best States ------------- Heat Dissipation 25 Energy Generation 10 Energy Capacity 125 Matter Stores 300 Matter Capacity 300 Sight Range 16 Terrain Scan Density 10 Evasion (%) 50 Offensive Hacking 10 Item Schematics ----------------- None Robot Schematics ------------------ None Fabricated ------------ Nothing Alien Tech Used ----------------- None Achievements -------------- Backstab Hehehe Challenges ------------ None Game ------ Seed TerrabombWarpAirjet Manual? 0 Play Time 00:13:41 Cumulative 3.0 hours Start 2020.02.01 @ 15:25:37 End 2020.02.01 @ 15:38:34 Sessions 1 Manual Loads 0 Difficulty Rogue Special Mode None Game No. 31 Rogue 31 Adventurer 0 Explorer 0 Win Type - Total 0 Types 0/0/0/0/0/0/0 Lore% 0 Gallery% 12 Achievement% 4 Wizard Run 0 Options --------- ASCII 1 Keyboard 0 Movement Arrows Keybinds 0 Fullscreen 1 Font 18/SmallcapsGlow Map View 76x50 Tactical HUD 1 Map Filters NONE Filters NONE Steam 1 RUN: 45482777-8274-4684-8e53-9415dd2c81c6